fUSD/lending_fUSD_20240225
["ID","MTS","AMOUNT","RATE_DAILY","PERIOD"]
[315161808,1708896759212,-100000.0,0.00023697,2]
[315161809,1708896759232,-1000.0,0.00023697,2]
[315161810,1708896759251,-468.5225,0.00023698,2]
[315161811,1708896759271,-1278.71,0.00023706,2]
[315161812,1708896759296,-259.53,0.00023722,2]
[315161813,1708896759319,-358.05004697,0.00023727,2]
[315161814,1708896759340,-150.0,0.00023731,2]
[315161815,1708896759361,-1353.25556258,0.00023741,2]
[315161816,1708896759384,-150.0,0.00023746,2]
[315161817,1708896759406,-561.29,0.00023747,2]
[315161818,1708896759426,-500.0,0.00023758,2]
[315161819,1708896759448,-500.0,0.00023758,2]
[315161820,1708896759470,-500.0,0.00023758,2]
[315161821,1708896759490,-500.0,0.00023758,2]
[315161822,1708896759511,-500.0,0.00023758,2]
[315161823,1708896759533,-500.0,0.00023758,2]
[315161824,1708896759553,-874.09,0.00023759,2]
[315161825,1708896759574,-874.09,0.00023759,2]
[315161826,1708896759594,-874.09,0.00023759,2]
[315161827,1708896759614,-500.0,0.00023759,2]
[315161828,1708896759635,-500.0,0.00023759,2]
[315161829,1708896759656,-500.0,0.00023759,2]
[315161830,1708896759677,-500.0,0.00023759,2]
[315161831,1708896759698,-500.0,0.00023759,2]
[315161832,1708896759745,-500.0,0.00023759,2]
[315161833,1708896759766,-500.0,0.00023759,2]
[315161834,1708896759788,-485.58568402,0.00023759,2]
[315161835,1708896759810,-500.0,0.00023759,2]
[315161836,1708896759831,-391.23413299,0.00023759,2]
[315161837,1708896759852,-966.31,0.00023759,2]
[315161838,1708896759876,-500.0,0.00023759,2]
[315161839,1708896759896,-500.0,0.00023759,2]
[315161840,1708896759920,-500.0,0.00023759,2]
[315161841,1708896759944,-500.0,0.00023759,2]
[315161842,1708896759964,-500.0,0.00023759,2]
[315161843,1708896759985,-500.0,0.00023759,2]
[315161844,1708896760006,-526.91191851,0.00023759,2]
[315161845,1708896760032,-500.0,0.00023759,2]
[315161846,1708896760054,-500.0,0.00023759,2]
[315161847,1708896760075,-500.0,0.00023759,2]
[315161848,1708896760096,-500.0,0.00023759,2]
[315161849,1708896760117,-500.0,0.00023759,2]
[315161850,1708896760139,-500.0,0.00023759,2]
[315161851,1708896760160,-500.0,0.00023759,2]
[315161852,1708896760181,-500.0,0.00023759,2]
[315161853,1708896760202,-500.0,0.00023759,2]
[315161854,1708896760223,-426.69,0.00023759,2]
[315161855,1708896760244,-306.26881109,0.00023759,2]
[315161856,1708896760267,-500.0,0.00023759,2]
[315161857,1708896760290,-500.0,0.00023759,2]
[315161858,1708896760313,-500.0,0.00023759,2]
[315161859,1708896760337,-520.21255688,0.00023759,2]
[315161860,1708896760358,-349.62,0.00023759,2]
[315161861,1708896760381,-489.62249856,0.00023759,2]
[315161862,1708896760402,-595.10167812,0.00023759,2]
[315161863,1708896760423,-500.0,0.00023759,2]
[315161864,1708896760447,-500.0,0.00023759,2]
[315161865,1708896760469,-500.0,0.00023759,2]
[315161866,1708896760490,-583.84049927,0.00023759,2]
[315161867,1708896760511,-515.56370703,0.00023759,2]
[315161868,1708896760533,-500.0,0.00023759,2]
[315161869,1708896760554,-500.0,0.00023759,2]
[315161870,1708896760574,-500.0,0.00023759,2]
[315161871,1708896760598,-500.0,0.00023759,2]
[315161872,1708896760619,-500.0,0.00023759,2]
[315161873,1708896760639,-500.0,0.00023759,2]
[315161874,1708896760659,-500.0,0.00023759,2]
[315161875,1708896760680,-500.0,0.00023759,2]
[315161876,1708896760700,-500.0,0.00023759,2]
[315161877,1708896760721,-162.21789693,0.00023759,2]
[315161878,1708896760742,-588.98,0.00023759,2]
[315161879,1708896760764,-500.0,0.00023759,2]
[315161880,1708896760787,-500.0,0.00023759,2]
[315161881,1708896760807,-500.0,0.00023759,2]
[315161882,1708896760831,-500.0,0.00023759,2]
[315161883,1708896760855,-500.0,0.00023759,2]
[315161884,1708896760876,-500.0,0.00023759,2]
[315161885,1708896760896,-500.0,0.00023759,2]
[315161886,1708896760917,-500.0,0.00023759,2]
[315161887,1708896760938,-500.0,0.00023759,2]
[315161888,1708896760959,-500.0,0.00023759,2]
[315161889,1708896760981,-500.0,0.00023759,2]
[315161890,1708896761002,-431.16000001,0.00023759,2]
[315161891,1708896761023,-500.0,0.00023759,2]
[315161892,1708896761043,-500.0,0.00023759,2]
[315161893,1708896761065,-500.0,0.00023759,2]
[315161894,1708896761085,-165.85133464,0.00023759,2]
[315161895,1708896761107,-471.11255254,0.00023759,2]
[315161896,1708896761129,-500.0,0.00023759,2]
[315161897,1708896761151,-500.0,0.00023759,2]
[315161898,1708896761176,-500.0,0.00023759,2]
[315161899,1708896761199,-500.0,0.00023759,2]
[315161900,1708896761221,-500.0,0.00023759,2]
[315161901,1708896761243,-631.31,0.00023759,2]
[315161902,1708896761265,-500.0,0.00023759,2]
[315161903,1708896761291,-500.0,0.00023759,2]
[315161904,1708896761313,-500.0,0.00023759,2]
[315161905,1708896761337,-500.0,0.00023759,2]
[315161906,1708896761358,-500.0,0.00023759,2]
[315161907,1708896761382,-500.0,0.00023759,2]
[315161908,1708896761402,-500.0,0.00023759,2]
[315161909,1708896761422,-618.21,0.00023759,2]
[315161910,1708896761445,-511.7,0.00023759,2]
[315161911,1708896761466,-500.0,0.00023759,2]
[315161912,1708896761486,-500.0,0.00023759,2]
[315161913,1708896761508,-500.0,0.00023759,2]
[315161914,1708896761532,-532.28,0.00023759,2]
[315161915,1708896761557,-500.0,0.00023759,2]
[315161916,1708896761582,-500.0,0.00023759,2]
[315161917,1708896761606,-500.0,0.00023759,2]
[315161918,1708896761627,-500.0,0.00023759,2]
[315161919,1708896761649,-500.0,0.00023759,2]
[315161920,1708896761670,-500.0,0.00023759,2]
[315161921,1708896761691,-270.62686393,0.00023759,2]
[315161922,1708896761713,-603.41,0.00023759,2]
[315161923,1708896761735,-500.0,0.00023759,2]
[315161924,1708896761758,-500.0,0.00023759,2]
[315161925,1708896761781,-500.0,0.00023759,2]
[315161926,1708896761805,-500.0,0.00023759,2]
[315161927,1708896761827,-500.0,0.00023759,2]
[315161928,1708896761850,-500.0,0.00023759,2]
[315161929,1708896761871,-500.0,0.00023759,2]
[315161930,1708896761892,-500.0,0.00023759,2]
[315161931,1708896761915,-782.31,0.00023759,2]
[315161932,1708896761938,-782.31,0.00023759,2]
[315161933,1708896761959,-500.0,0.00023759,2]
[315161934,1708896761982,-782.31,0.00023759,2]
[315161935,1708896762005,-782.31,0.00023759,2]
[315161936,1708896762028,-862.66,0.00023759,2]
[315161937,1708896762050,-500.0,0.00023759,2]
[315161938,1708896762072,-500.0,0.00023759,2]
[315161939,1708896762095,-1064.67,0.00023759,2]
[315161940,1708896762119,-500.0,0.00023759,2]
[315161941,1708896762141,-500.0,0.00023759,2]
[315161942,1708896762161,-5563.0,0.0002376,2]
[315161943,1708896762182,-1657.03400229,0.0002376,2]
[315161944,1708896762202,-247685.92613906,0.0002376,2]
[315161945,1708896762396,-150.0,0.00023762,2]
[315161946,1708896762423,-358.05004697,0.0002377,2]
[315161947,1708896762444,-2935.0,0.00023777,2]
[315161948,1708896762466,-956.0,0.00023777,2]
[315161949,1708896762487,-714.346,0.00023777,2]
[315161950,1708896762508,-534.0,0.00023777,2]
[315161951,1708896762536,-461.222,0.00023777,2]
[315161952,1708896762558,-1040.0,0.00023777,2]
[315161953,1708896762579,-201.069,0.00023777,2]
[315161954,1708896762599,-601.0,0.00023777,2]
[315161955,1708896762621,-160.4172911,0.0002378,2]
[315161956,1708896762642,-500.0,0.00023781,2]
[315161957,1708896762664,-588.98,0.00023781,2]
[315161958,1708896762685,-500.0,0.00023781,2]
[315161959,1708896762707,-150.0,0.00023781,2]
[315161960,1708896762728,-500.0,0.00023781,2]
[315161961,1708896762749,-603.41,0.00023781,2]
[315161962,1708896762770,-862.66,0.00023781,2]
[315161963,1708896762794,-150.0,0.00023791,2]
[315161964,1708896762815,-800.0,0.00023806,2]
[315161965,1708896762835,-200.0,0.00023807,2]
[315161966,1708896762858,-800.0,0.00023807,2]
[315161967,1708896762879,-800.0,0.00023807,2]
[315161968,1708896762899,-200.0,0.00023807,2]
[315161969,1708896762920,-200.0,0.00023807,2]
[315161970,1708896762940,-500.0,0.00023807,2]
[315161971,1708896762961,-200.0,0.00023807,2]
[315161972,1708896762983,-150.0,0.00023813,2]
[315161973,1708896763005,-358.05004697,0.00023813,2]
[315161974,1708896763027,-250.0,0.00023822,2]
[315161975,1708896763049,-177.83,0.00023856,2]
[315161976,1708896763073,-358.05004697,0.00023857,2]
[315161977,1708896763095,-193.86263835,0.00023859,2]
[315161978,1708896763118,-259.53,0.00023859,2]
[315161979,1708896763141,-561.29,0.00023863,2]
[315161980,1708896763163,-500.0,0.00023864,2]
[315161981,1708896763184,-500.0,0.00023864,2]
[315161982,1708896763205,-500.0,0.00023864,2]
[315161983,1708896763227,-500.0,0.00023864,2]
[315161984,1708896763248,-500.0,0.00023864,2]
[315161985,1708896763269,-500.0,0.00023864,2]
[315161986,1708896763296,-500.0,0.00023864,2]
[315161987,1708896763316,-500.0,0.00023864,2]
[315161988,1708896763337,-500.0,0.00023864,2]
[315161989,1708896763357,-317.60619111,0.00023868,2]
[315161990,1708896763382,-150.0,0.00023872,2]
[315161991,1708896763402,-874.09,0.00023878,2]
[315161992,1708896763423,-966.31,0.00023878,2]
[315161993,1708896763446,-500.0,0.00023878,2]
[315161994,1708896763475,-500.0,0.00023878,2]
[315161995,1708896763496,-619.97,0.00023878,2]
[315161996,1708896763518,-500.0,0.00023878,2]
[315161997,1708896763540,-500.0,0.00023878,2]
[315161998,1708896763563,-158.32,0.00023878,2]
[315161999,1708896763584,-500.0,0.00023878,2]
[315162000,1708896763605,-500.0,0.00023878,2]
[315162001,1708896763627,-500.0,0.00023878,2]
[315162002,1708896763650,-500.0,0.00023878,2]
[315162003,1708896763673,-340.45,0.00023878,2]
[315162004,1708896763695,-500.0,0.00023878,2]
[315162005,1708896763716,-252.16971247,0.00023878,2]
[315162006,1708896763737,-500.0,0.00023878,2]
[315162007,1708896763759,-500.0,0.00023878,2]
[315162008,1708896763782,-500.0,0.00023878,2]
[315162009,1708896763803,-500.0,0.00023878,2]
[315162010,1708896763824,-500.0,0.00023878,2]
[315162011,1708896763848,-500.0,0.00023878,2]
[315162012,1708896763870,-500.0,0.00023878,2]
[315162013,1708896763892,-561.25,0.00023878,2]
[315162014,1708896763916,-300.64,0.00023878,2]
[315162015,1708896763940,-500.0,0.00023878,2]
[315162016,1708896763962,-500.0,0.00023878,2]
[315162017,1708896763983,-500.0,0.00023878,2]
[315162018,1708896764004,-500.0,0.00023878,2]
[315162019,1708896764027,-1064.67,0.00023878,2]
[315162020,1708896764049,-500.0,0.00023879,2]
[315162021,1708896764072,-500.0,0.00023879,2]
[315162022,1708896764095,-527.08,0.00023879,2]
[315162023,1708896764118,-516.59906566,0.00023879,2]
[315162024,1708896764142,-500.0,0.00023879,2]
[315162025,1708896764165,-500.0,0.00023879,2]
[315162026,1708896764189,-500.0,0.00023879,2]
[315162027,1708896764212,-500.0,0.00023879,2]
[315162028,1708896764234,-500.0,0.00023879,2]
[315162029,1708896764257,-500.0,0.00023879,2]
[315162030,1708896764282,-193.86263835,0.00023879,2]
[315162031,1708896764304,-211.0,0.00023882,2]
[315162032,1708896764326,-150.0,0.00023882,2]
[315162033,1708896764348,-2850.32492458,0.00023884,2]
[315162034,1708896764373,-2850.3249245,0.00023885,2]
[315162035,1708896764394,-2850.3249245,0.00023887,2]
[315162036,1708896764419,-150.0,0.00023888,2]
[315162037,1708896764443,-2850.3249245,0.00023888,2]
[315162038,1708896764466,-2850.3249245,0.0002389,2]
[315162039,1708896764487,-500.0,0.0002389,2]
[315162040,1708896764509,-500.0,0.0002389,2]
[315162041,1708896764533,-500.0,0.0002389,2]
[315162042,1708896764554,-782.31,0.0002389,2]
[315162043,1708896764576,-500.0,0.0002389,2]
[315162044,1708896764599,-500.0,0.0002389,2]
[315162045,1708896764622,-2850.3249245,0.00023891,2]
[315162046,1708896764646,-2850.3249245,0.00023893,2]
[315162047,1708896764668,-2850.3249245,0.00023894,2]
[315162048,1708896764689,-300.0,0.00023895,2]
[315162049,1708896764711,-2850.3249245,0.00023896,2]
[315162050,1708896764734,-2850.3249245,0.00023897,2]
[315162051,1708896764756,-2850.3249245,0.00023899,2]
[315162052,1708896764779,-588.98,0.00023899,2]
[315162053,1708896764800,-644.64,0.00023899,2]
[315162054,1708896764824,-500.0,0.00023899,2]
[315162055,1708896764849,-603.41,0.00023899,2]
[315162056,1708896764871,-862.66,0.00023899,2]
[315162057,1708896764891,-333.28888803,0.000239,2]
[315162058,1708896764912,-10350.2505,0.000239,2]
[315162059,1708896764933,-1000.0,0.000239,5]
[315162060,1708896764955,-782.68365614,0.000239,2]
[315162061,1708896764976,-160.4172911,0.000239,2]
[315162062,1708896764999,-150.0,0.000239,2]
[315162063,1708896765021,-2189.97942291,0.000239,2]
[315162064,1708896765046,-2850.3249245,0.000239,2]
[315162065,1708896765070,-891.01811924,0.000239,8]
[315162066,1708896765275,-9719.70173276,0.000239,2]
[315162067,1708896765303,-150.0,0.00023901,2]
[315162068,1708896765327,-150.0,0.0002391,2]
[315162069,1708896765351,-249.18066457,0.00023933,2]
[315162070,1708896765376,-150.0,0.00023953,2]
[315162071,1708896765399,-1231.0,0.00023959,2]
[315162072,1708896765421,-1954.0,0.00023959,2]
[315162073,1708896765442,-1258.0,0.00023959,2]
[315162074,1708896765465,-217.0,0.00023959,2]
[315162075,1708896765486,-430.0,0.00023959,2]
[315162076,1708896765507,-1007.0,0.00023959,2]
[315162077,1708896765530,-277.0,0.00023959,2]
[315162078,1708896765551,-859.0,0.00023959,2]
[315162079,1708896765572,-1453.0,0.00023959,2]
[315162080,1708896765592,-1137.0,0.00023959,2]
[315162081,1708896765613,-322.0,0.00023959,2]
[315162082,1708896765634,-338.0,0.00023959,2]
[315162083,1708896765656,-2905.0,0.00023959,2]
[315162084,1708896765676,-162.0,0.00023959,2]
[315162085,1708896765696,-390.0,0.00023959,2]
[315162086,1708896765716,-377.826,0.00023959,2]
[315162087,1708896765739,-150.0,0.00023974,2]
[315162088,1708896765763,-150.0,0.00023978,2]
[315162089,1708896765788,-561.29,0.00023979,2]
[315162090,1708896765812,-150.0,0.00023979,2]
[315162091,1708896765834,-500.0,0.00023982,2]
[315162092,1708896765855,-500.0,0.00023982,2]
[315162093,1708896765880,-162.834858,0.00023982,2]
[315162094,1708896766060,-616.14,0.00023982,2]
[315162095,1708896766085,-500.0,0.00023982,2]
[315162096,1708896766107,-193.86263835,0.00023982,2]
[315162097,1708896766128,-300.0,0.00023983,2]
[315162098,1708896766148,-300.0,0.00023983,2]
[315162099,1708896766169,-500.0,0.00023983,2]
[315162100,1708896766190,-500.0,0.00023983,2]
[315162101,1708896766211,-500.0,0.00023983,2]
[315162102,1708896766231,-598.55715056,0.00023983,2]
[315162103,1708896766251,-500.0,0.00023983,2]
[315162104,1708896766271,-500.0,0.00023983,2]
[315162105,1708896766296,-500.0,0.00023983,2]
[315162106,1708896766317,-180.88901034,0.00023983,2]
[315162107,1708896766338,-500.0,0.00023983,2]
[315162108,1708896766359,-500.0,0.00023983,2]
[315162109,1708896766381,-500.0,0.00023983,2]
[315162110,1708896766403,-500.0,0.00023983,2]
[315162111,1708896766425,-500.0,0.00023983,2]
[315162112,1708896766447,-385.35,0.00023983,2]
[315162113,1708896766468,-615.74,0.00023983,2]
[315162114,1708896766493,-560128.68564605,0.00023984,4]
[315162115,1708896766517,-150.0,0.00023984,2]
[315162116,1708896766540,-8872.1674852,0.00023984,2]
[315162117,1708896766562,-7026.780088,0.00023984,2]
[315162118,1708896766585,-5181.3926907,0.00023984,2]
[315162119,1708896766607,-3336.0052935,0.00023984,2]
[315162120,1708896766628,-1490.6178962,0.00023984,2]
[315162121,1708896766650,-84294.8912801,0.00023984,2]
[315162122,1708896766671,-66761.7765955,0.00023984,2]
[315162123,1708896766692,-49228.6619109,0.00023984,2]
[315162124,1708896766713,-31695.5472262,0.00023984,2]
[315162125,1708896766735,-14162.4325416,0.00023984,2]
[315162126,1708896766757,-966.31,0.00023985,2]
[315162127,1708896766780,-500.0,0.00023985,2]
[315162128,1708896766801,-500.0,0.00023985,2]
[315162129,1708896766824,-500.0,0.00023985,2]
[315162130,1708896766846,-223.4,0.00023985,2]
[315162131,1708896766870,-150.0,0.00023985,2]
[315162132,1708896766891,-467.08,0.00023985,2]
[315162133,1708896766914,-500.0,0.00023985,2]
[315162134,1708896766934,-500.0,0.00023985,2]
[315162135,1708896766956,-500.0,0.00023985,2]
[315162136,1708896766977,-500.0,0.00023985,2]
[315162137,1708896766999,-500.0,0.00023985,2]
[315162138,1708896767021,-500.0,0.00023985,2]
[315162139,1708896767043,-500.0,0.00023985,2]
[315162140,1708896767064,-500.0,0.00023985,2]
[315162141,1708896767085,-1064.67,0.00023985,2]
[315162142,1708896767106,-500.0,0.00023989,2]
[315162143,1708896767127,-500.0,0.00023989,2]
[315162144,1708896767149,-583.12,0.00023989,2]
[315162145,1708896767171,-500.0,0.00023989,2]
[315162146,1708896767190,-4110.0,0.0002399,2]
[315162147,1708896767210,-3782.815,0.0002399,2]
[315162148,1708896767231,-8187.0,0.0002399,2]
[315162149,1708896767252,-2555.861,0.0002399,2]
[315162150,1708896767273,-2296.0,0.0002399,2]
[315162151,1708896767296,-2696.0,0.0002399,2]
[315162152,1708896767319,-909.291,0.0002399,2]
[315162153,1708896767340,-11583.085,0.0002399,2]
[315162154,1708896767364,-588.98,0.0002399,2]
[315162155,1708896767385,-500.0,0.0002399,2]
[315162156,1708896767408,-603.41,0.0002399,2]
[315162157,1708896767429,-862.66,0.0002399,2]
[315162158,1708896767452,-782.31,0.00023991,2]
[315162159,1708896767475,-30576.3,0.00023996,2]
[315162160,1708896767497,-500.0,0.00023996,2]
[315162161,1708896767519,-517.36,0.00023996,2]
[315162162,1708896767544,-151.022606,0.00023998,3]
[315162163,1708896767569,-151.022606,0.00023998,3]
[315162164,1708896767592,-151.022606,0.00023998,3]
[315162165,1708896767614,-151.022606,0.00023998,3]
[315162166,1708896767636,-151.022606,0.00023998,3]
[315162167,1708896767657,-151.022606,0.00023998,3]
[315162168,1708896767679,-151.022606,0.00023998,3]
[315162169,1708896767701,-151.022606,0.00023998,3]
[315162170,1708896767722,-151.022606,0.00023998,3]
[315162171,1708896767744,-151.022606,0.00023998,3]
[315162172,1708896767766,-151.022606,0.00023998,3]
[315162173,1708896767788,-151.022606,0.00023998,3]
[315162174,1708896767811,-151.022606,0.00023998,3]
[315162175,1708896767833,-151.022606,0.00023998,3]
[315162176,1708896767855,-151.022606,0.00023998,3]
[315162177,1708896767877,-151.022606,0.00023998,3]
[315162178,1708896767900,-151.022606,0.00023998,3]
[315162179,1708896767922,-151.022606,0.00023998,3]
[315162180,1708896767947,-151.022606,0.00023998,3]
[315162181,1708896767969,-151.022606,0.00023998,3]
[315162182,1708896767991,-151.022606,0.00023998,3]
[315162183,1708896768013,-151.022606,0.00023998,3]
[315162184,1708896768039,-151.022606,0.00023998,3]
[315162185,1708896768063,-151.022606,0.00023998,3]
[315162186,1708896768085,-151.022606,0.00023998,3]
[315162187,1708896768107,-151.022606,0.00023998,3]
[315162188,1708896768129,-151.022606,0.00023998,3]
[315162189,1708896768150,-198.2930226,0.00023998,2]
[315162190,1708896768172,-151.022606,0.00023998,3]
[315162191,1708896768195,-151.022606,0.00023998,3]
[315162192,1708896768217,-151.022606,0.00023998,3]
[315162193,1708896768239,-151.022606,0.00023998,3]
[315162194,1708896768262,-151.022606,0.00023998,3]
[315162195,1708896768288,-151.022606,0.00023998,3]
[315162196,1708896768313,-151.022606,0.00023998,3]
[315162197,1708896768337,-151.022606,0.00023998,3]
[315162198,1708896768360,-151.022606,0.00023998,3]
[315162199,1708896768383,-151.022606,0.00023998,3]
[315162200,1708896768405,-151.022606,0.00023998,3]
[315162201,1708896768429,-151.022606,0.00023998,3]
[315162202,1708896768452,-151.022606,0.00023998,3]
[315162203,1708896768475,-151.022606,0.00023998,3]
[315162204,1708896768499,-151.022606,0.00023998,3]
[315162205,1708896768524,-151.022606,0.00023998,3]
[315162206,1708896768547,-151.022606,0.00023998,3]
[315162207,1708896768568,-151.022606,0.00023998,3]
[315162208,1708896768590,-151.022606,0.00023998,3]
[315162209,1708896768612,-151.022606,0.00023998,3]
[315162210,1708896768634,-151.022606,0.00023998,3]
[315162211,1708896768656,-151.022606,0.00023998,3]
[315162212,1708896768679,-151.022606,0.00023998,3]
[315162213,1708896768702,-151.022606,0.00023998,3]
[315162214,1708896768725,-151.022606,0.00023998,3]
[315162215,1708896768747,-151.022606,0.00023998,3]
[315162216,1708896768769,-250.21798175,0.00023998,2]
[315162217,1708896768793,-151.022606,0.00023998,3]
[315162218,1708896768816,-151.022606,0.00023998,3]
[315162219,1708896768839,-151.022606,0.00023998,3]
[315162220,1708896768861,-151.022606,0.00023998,3]
[315162221,1708896768884,-151.022606,0.00023998,3]
[315162222,1708896768907,-151.022606,0.00023998,3]
[315162223,1708896768931,-151.022606,0.00023998,3]
[315162224,1708896768956,-151.022606,0.00023998,3]
[315162225,1708896768978,-151.022606,0.00023998,3]
[315162226,1708896768999,-151.022606,0.00023998,3]
[315162227,1708896769020,-1212.77909687,0.00023998,2]
[315162228,1708896769042,-482.25955554,0.00023998,2]
[315162229,1708896769065,-163.022606,0.00023998,3]
[315162230,1708896769088,-163.022606,0.00023998,3]
[315162231,1708896769110,-163.022606,0.00023998,3]
[315162232,1708896769133,-163.022606,0.00023998,3]
[315162233,1708896769155,-163.022606,0.00023998,3]
[315162234,1708896769177,-163.022606,0.00023998,3]
[315162235,1708896769200,-163.022606,0.00023998,3]
[315162236,1708896769222,-163.022606,0.00023998,3]
[315162237,1708896769242,-155.0,0.00023998,2]
[315162238,1708896769263,-874.09,0.00023998,2]
[315162239,1708896769285,-1912.6448073,0.00023998,2]
[315162240,1708896769308,-214.84760017,0.00023998,2]
[315162241,1708896769493,-500.0,0.00023998,2]
[315162242,1708896769518,-500.0,0.00023998,2]
[315162243,1708896769541,-500.0,0.00023998,2]
[315162244,1708896769563,-150.01,0.00023998,2]
[315162245,1708896769585,-504.96962012,0.00023998,2]
[315162246,1708896769606,-253.25102232,0.00023998,2]
[315162247,1708896769627,-1241.77234775,0.00023998,2]
[315162248,1708896769649,-610.21871154,0.00023999,2]
[315162249,1708896769670,-193.86263835,0.00023999,2]
[315162250,1708896769692,-387.4880754,0.00023999,10]
[315162251,1708896769714,-387.48807539,0.00023999,10]
[315162252,1708896769736,-874.09,0.00023999,2]
[315162253,1708896769757,-874.09,0.00023999,2]
[315162254,1708896769779,-874.09,0.00023999,2]
[315162255,1708896769800,-874.09,0.00023999,2]
[315162256,1708896769822,-874.09,0.00023999,2]
[315162257,1708896769843,-874.09,0.00023999,2]
[315162258,1708896769865,-874.09,0.00023999,2]
[315162259,1708896769886,-874.09,0.00023999,2]
[315162260,1708896769906,-874.09,0.00023999,2]
[315162261,1708896769927,-874.09,0.00023999,2]
[315162262,1708896769947,-874.09,0.00023999,2]
[315162263,1708896769968,-874.09,0.00023999,2]
[315162264,1708896769988,-874.09,0.00023999,2]
[315162265,1708896770009,-874.09,0.00023999,2]
[315162266,1708896770030,-874.09,0.00023999,2]
[315162267,1708896770053,-874.09,0.00023999,2]
[315162268,1708896770076,-874.09,0.00023999,2]
[315162269,1708896770098,-874.32481987,0.00023999,2]
[315162270,1708896770125,-966.31,0.00023999,2]
[315162271,1708896770150,-966.31,0.00023999,2]
[315162272,1708896770175,-966.31,0.00023999,2]
[315162273,1708896770198,-966.31,0.00023999,2]
[315162274,1708896770221,-966.31,0.00023999,2]
[315162275,1708896770243,-966.31,0.00023999,2]
[315162276,1708896770266,-966.31,0.00023999,2]
[315162277,1708896770293,-966.31,0.00023999,2]
[315162278,1708896770318,-966.31,0.00023999,2]
[315162279,1708896770342,-966.31,0.00023999,2]
[315162280,1708896770367,-966.31,0.00023999,2]
[315162281,1708896770392,-966.31,0.00023999,2]
[315162282,1708896770417,-966.31,0.00023999,2]
[315162283,1708896770443,-966.31,0.00023999,2]
[315162284,1708896770467,-966.31,0.00023999,2]
[315162285,1708896770489,-966.31,0.00023999,2]
[315162286,1708896770512,-966.31,0.00023999,2]
[315162287,1708896770534,-966.39,0.00023999,2]
[315162288,1708896770556,-500.0,0.00023999,2]
[315162289,1708896770580,-500.0,0.00023999,2]
[315162290,1708896770604,-500.0,0.00023999,2]
[315162291,1708896770627,-500.0,0.00023999,2]
[315162292,1708896770650,-341.66,0.00023999,2]
[315162293,1708896770673,-500.0,0.00023999,2]
[315162294,1708896770695,-500.0,0.00023999,2]
[315162295,1708896770716,-243.98,0.00023999,2]
[315162296,1708896770738,-500.0,0.00023999,2]
[315162297,1708896770759,-280.25,0.00023999,2]
[315162298,1708896770783,-588.98,0.00023999,2]
[315162299,1708896770807,-588.98,0.00023999,2]
[315162300,1708896770837,-588.98,0.00023999,2]
[315162301,1708896770863,-588.98,0.00023999,2]
[315162302,1708896770886,-588.98,0.00023999,2]
[315162303,1708896770908,-588.98,0.00023999,2]
[315162304,1708896770930,-588.98,0.00023999,2]
[315162305,1708896770953,-588.98,0.00023999,2]
[315162306,1708896770976,-588.98,0.00023999,2]
[315162307,1708896770999,-588.98,0.00023999,2]